Cogmind - Beta 14 *** ADVENTURER MODE // 2024.08.18 @ 17:09:50 Player: Bob Result: Self-destructed Performance ------------- Evolutions (4) 2000 Regions Visited (5) 1000 Robots Destroyed (38) 190 Value Destroyed (1434) 1434 Prototype IDs (9) 180 Alien Tech Used (0) 0 Bonus (503) 503 TOTAL SCORE: 5307 Bonus ------- Follower Combat Kills 203 Registered with UFD 300 Cogmind --------- Core Integrity 631/850 Matter 20/300 Energy 150/150 System Corruption 0% Temperature Cool (0) Movement Treading (160) Location -6/Factory Parts ------- > --- POWER (2) -------- Light Angular Momentum Engine > --- PROPULSION (4) --- Improved Treads Improved Medium Treads > --- UTILITY (6) ------ Improved Cooling System Large Storage Unit Experimental Signal Interpreter Advanced Targeting Computer A0-MCA's Component Scanner > --- WEAPON (3) ------- Heavy Flak Cannon > --- INVENTORY (15) --- Light Fission Core Advanced Heat Sink Energy Well (350) Improved Target Analyzer Kinecellerator Mining Claw Peak State ------------ > --- POWER ------------ Improved Ion Engine Light Angular Momentum Engine > --- PROPULSION ------- Improved Treads Improved Treads Improved Medium Treads > --- UTILITY ---------- Improved Cooling System Large Storage Unit Experimental Signal Interpreter Advanced Targeting Computer Hardened Medium Armor Plating A0-MCA's Component Scanner > --- WEAPON ----------- Beam Rifle Battle Rifle Heavy Flak Cannon > --- INVENTORY -------- Advanced Heat Sink Energy Well Improved Target Analyzer Kinecellerator Mining Claw [Rating: 55] Favorites ----------- Power Improved Ion Engine Engine Improved Ion Engine Power Core Light Nuclear Core Propulsion Light Treads Treads Light Treads Leg Aluminum Leg Utility Signal Interpreter Device V3-11A's Pendant Storage Large Storage Unit Processor Signal Interpreter Protection Hardened Light Armor Plating Weapon Improved Light Cannon Energy Gun Beam Rifle Ballistic Gun Battle Rifle Ballistic Cannon Improved Light Cannon Slashing Weapon Mining Claw Build | -11 -10 -10 -9 -9 -6 ------- Run | Yrd Mat Sub Rec Scr Fac Slots Evolved 8 | . . . . . 8 Power 1 | . . . . . 1 Propulsion 2 | . . . . . 2 Utility 4 | . . . . . 4 Weapon 1 | . . . . . 1 Parts Attached 58 | 5 10 14 7 10 12 Power 7 | 1 3 1 1 . 1 Engine 6 | 1 2 1 1 . 1 Core 1 | . 1 . . . . Reactor . | . . . . . . Propulsion 16 | 2 2 2 4 5 1 Treads 15 | 2 2 2 4 4 1 Leg 1 | . . . . 1 . Wheel . | . . . . . . Hover . | . . . . . . Flight . | . . . . . . Utility 18 | 1 2 3 1 5 6 Device 5 | . . 2 . 1 2 Storage 4 | 1 1 1 . 1 . Processor 5 | . 1 . . 2 2 Hackware . | . . . . . . Protection 4 | . . . 1 1 2 Artifact . | . . . . . . Weapon 17 | 1 3 8 1 . 4 Energy Gun 1 | . . . . . 1 Energy Cannon . | . . . . . . Ballistic Gun 3 | 1 1 . . . 1 Ballistic Cannon 9 | . 2 4 1 . 2 Launcher . | . . . . . . Special Weapon . | . . . . . . Impact Weapon . | . . . . . . Slashing Weapon 4 | . . 4 . . . Piercing Weapon . | . . . . . . Special Melee Weapon . | . . . . . . Unidentified Prototypes 1 | . . 1 . . . Parts Lost 6 | . . 1 . . 5 Power 2 | . . 1 . . 1 Propulsion 1 | . . . . . 1 Utility 1 | . . . . . 1 Weapon 2 | . . . . . 2 Highest Loss Streak 4 | . . 1 . . 4 To Critical Strikes 1 | . . . . . 1 Average Slot Usage (%) 89 | . 95 99 99 71 82 Engine 12 | . 7 13 14 14 8 Treads 27 | . 28 28 28 27 15 Device 4 | . . 6 11 . 6 Storage 7 | . 14 7 . 6 6 Processor 14 | . 10 14 14 14 20 Protection 2 | . . . 2 7 5 Ballistic Cannon 12 | . 23 18 20 . 6 Slashing Weapon 4 | . . 9 8 . . Peak Build Rating 55 | 5 12 13 13 17 55 Average Rating 13 | 3 10 11 12 11 45 On Entrance 9 | . 5 12 12 12 17 Naked Turns . | . . . . . . Heaviest Build 59 | 9 35 35 20 27 59 Greatest Support 76 | 40 40 40 43 46 76 Greatest Overweight (x) 1 | . . . . 1 1 Average Overweight (x) . | . . . . . . Largest Inventory Capacity 15 | 8 15 15 5 15 15 Average Capacity 10 | 7 14 10 5 9 15 Most Carried 15 | 4 15 15 5 9 7 Average Carried 7 | 1 9 10 4 6 3 Final Capacity 15 | 8 15 5 5 15 15 Final Carried 15 | 2 15 5 4 8 6 Class Distribution -------------------- 93% | Mutant 6% | Derelict-Gunner Dominant Class ---------------- Mutant | -10/Materials Mutant | -10/Subcaves Mutant | -9/Recycling Mutant | -9/Scraptown Derelict-Gunner | -6/Factory Resources | -11 -10 -10 -9 -9 -6 ----------- Run | Yrd Mat Sub Rec Scr Fac Matter Collected 1515 | 178 272 706 110 160 89 Remotely . | . . . . . . Salvage Created 877 | . 240 284 26 . 327 Parts 35 | . 12 14 . . 9 Haulers Intercepted 2 | . 2 . . . . Recyclers Shooed . | . . . . . . Parts Field Recycled . | . . . . . . Retrieved Matter . | . . . . . . Parts Self-Destructed 26 | . . 26 . . . Prevented . | . . . . . . Kills | -11 -10 -10 -9 -9 -6 ------- Run | Yrd Mat Sub Rec Scr Fac Combat Hostiles Destroyed 33 | . 10 12 1 . 10 Guns 9 | . 2 . . . 7 Cannons 23 | . 8 11 1 . 3 Classes Destroyed 10 | . 4 3 1 . 2 Hauler 2 | . 2 . . . . Turret 2 | . . 2 . . . Watcher 1 | . 1 . . . . Swarmer 6 | . 6 . . . . Grunt 10 | . 4 1 . . 5 Sentry 4 | . . 2 . . 2 Specialist 2 | . . . . . 2 Hunter 1 | . . . . . 1 Programmer 1 | . . . 1 . . Subdweller 9 | . . 9 . . . Best Kill Streak 5 | . 5 2 1 . 3 Combat Bots Only 3 | . 3 2 1 . 3 Max Kills in Single Turn 1 | . 1 1 1 . 1 Gunslinging . | . . . . . . Exploded . | . . . . . . Melee . | . . . . . . Uniques/NPCs Destroyed . | . . . . . . Combat | -11 -10 -10 -9 -9 -6 -------- Run | Yrd Mat Sub Rec Scr Fac Hostile Shots Fired 316 | . 50 65 15 . 186 Missed 91 | . 7 26 4 . 54 Damage Taken 2637 | . 342 724 129 . 1442 Core 436 | . 56 138 23 . 219 Absorbed by Shields . | . . . . . . Ignored by Resistances 735 | . 107 171 36 . 421 Core Remaining (%) 56 | 100 . . . 13 . Volleys Fired 122 | . 42 44 4 . 32 Largest 3 | . 2 2 2 . 3 Hottest 134 | . 78 78 78 . 134 Shots Fired 256 | . 84 84 8 . 80 Gun 76 | . 26 . . . 50 Cannon 180 | . 58 84 8 . 30 Launcher . | . . . . . . Special . | . . . . . . Kinetic 224 | . 84 84 8 . 48 Thermal 32 | . . . . . 32 Explosive . | . . . . . . Electromagnetic . | . . . . . . Robot Hit Streak 26 | . 12 26 11 . 26 Robot Miss Streak 3 | . 3 2 . . 3 Penetration Max . | . . . . . . Secondary Targets . | . . . . . . Shots Hit Robots 207 | . 60 69 8 . 70 Core Hits 99 | . 19 22 1 . 57 Critical Kills . | . . . . . . Critical Parts Destroyed . | . . . . . . Critical Strikes 9 | . 4 3 . . 2 Burn 2 | . . . . . 2 Blast 7 | . 4 3 . . . Melee Attacks 21 | . . 21 . . . Impact . | . . . . . . Slashing 21 | . . 21 . . . Piercing . | . . . . . . Sneak Attacks . | . . . . . . Combat Hostiles . | . . . . . . Follow-up Attacks . | . . . . . . Damage Inflicted 4127 | . 979 1171 182 . 1795 Guns 783 | . 181 . . . 602 Cannons 3222 | . 798 1171 182 . 1071 Explosions 122 | . . . . . 122 Melee . | . . . . . . Ramming . | . . . . . . Kinetic 3641 | . 979 1171 182 . 1309 Thermal 364 | . . . . . 364 Explosive 122 | . . . . . 122 Electromagnetic . | . . . . . . Impact . | . . . . . . Slashing . | . . . . . . Piercing . | . . . . . . Highest Corruption 1 | . 1 1 1 1 . Average Corruption 1 | . 1 1 1 1 . Corruption Purged . | . . . . . . Corruption Blocked . | . . . . . . Effects 72 | . 4 34 12 22 . Message Errors 17 | . 1 6 2 8 . Matter Fused 20 | . 1 9 5 5 . Heat Flow Errors 13 | . 1 7 2 3 . Energy Discharges 6 | . . 3 1 2 . Parts Fused 3 | . . 2 1 . . Data Loss (minor) 6 | . 1 1 1 3 . Data Loss (major) 4 | . . 3 . 1 . Misfires 2 | . . 2 . . . Alerts 1 | . . 1 . . . Overload Shots . | . . . . . . Overflow Damage 104 | . 16 18 53 . 17 Projectiles 87 | . 16 18 53 . . Explosions 17 | . . . . . 17 Melee . | . . . . . . Knockbacks 39 | . 11 7 3 . 18 Impact . | . . . . . . Kinetic 38 | . 11 7 3 . 17 Secondary 1 | . . . . . 1 Self-Inflicted Damage 79 | . . . . . 79 Shots 1 | . . . . . 1 Rammed . | . . . . . . Targets Rammed . | . . . . . . Kicked . | . . . . . . Crushed . | . . . . . . Highest Temperature 255 | . 224 199 221 255 32 Average Temperature 68 | . 57 83 72 112 17 Received Heat Transfer 654 | . 117 204 6 . 327 Siege Activations . | . . . . . . Robots Corrupted . | . . . . . . Combat Hostiles . | . . . . . . Parts Fried . | . . . . . . Impact Corruptions . | . . . . . . Robots Melted . | . . . . . . Combat Hostiles . | . . . . . . Parts Melted 1 | . . . . . 1 Heat Transferred 1073 | . . . . . 1073 Parts Sabotaged . | . . . . . . Parts Stolen . | . . . . . . Parts Stripped . | . . . . . . Power Chain Reactions . | . . . . . . Alert | -11 -10 -10 -9 -9 -6 ------- Run | Yrd Mat Sub Rec Scr Fac Peak Influence 150 | . 150 . 66 . 135 Initial . | . . . . . . Average 31 | . 31 . 12 . 53 Maximum Alert Level . | . . . . . . Low Security (%) 100 | 100 100 . 100 . 100 Level 1 . | . . . . . . Level 2 . | . . . . . . Level 3 . | . . . . . . Level 4 . | . . . . . . Level 5 . | . . . . . . High Security . | . . . . . . Max Security . | . . . . . . Squads Dispatched 5 | . . . . . 5 Investigation 1 | . . . . . 1 Extermination . | . . . . . . Reinforcement 2 | . . . . . 2 Assault . | . . . . . . Garrison 2 | . . . . . 2 Intercept . | . . . . . . Searches Triggered . | . . . . . . Construction Impeded . | . . . . . . Haulers Reinforced . | . . . . . . Active Scanning Responses . | . . . . . . Cargo Convoy Interrupts . | . . . . . . Stealth | -11 -10 -10 -9 -9 -6 --------- Run | Yrd Mat Sub Rec Scr Fac Distress Signals 1 | . 1 . . . . Communications Jammed . | . . . . . . Distress Signals . | . . . . . . Times Spotted 65 | . 20 23 6 . 16 Peak Tracking Total 5 | . 3 2 3 . 5 Tactical Retreats 4 | . 2 2 . . . Traps | -11 -10 -10 -9 -9 -6 ------- Run | Yrd Mat Sub Rec Scr Fac Traps Triggered 7 | . 3 3 . . 1 Indirectly . | . . . . . . Trap Hack Attempts . | . . . . . . Triggered . | . . . . . . Disarmed . | . . . . . . Reprogrammed . | . . . . . . Reused . | . . . . . . Traps Extracted . | . . . . . . Installed . | . . . . . . Triggered 1 | . . 1 . . . Machines | -11 -10 -10 -9 -9 -6 ---------- Run | Yrd Mat Sub Rec Scr Fac Machines Disabled 3 | . . 1 . . 2 Max in Single Turn 2 | . . 1 . . 2 Garrison Access 1 | . . . . . 1 Machines Repaired . | . . . . . . Machines Dismantled . | . . . . . . Machines Sabotaged . | . . . . . . Overloaded Fab Kills . | . . . . . . Hacking | -11 -10 -10 -9 -9 -6 --------- Run | Yrd Mat Sub Rec Scr Fac Machines Accessed 8 | . 1 1 2 3 1 Terminals 3 | . 1 . 2 . . Fabricators . | . . . . . . Repair Stations . | . . . . . . Recycling Units . | . . . . . . Scanalyzers . | . . . . . . Garrison Access 1 | . . . . . 1 Total Hacks 21 | . 1 3 3 13 1 Successful 20 | . 1 3 2 13 1 Failed 1 | . . . 1 . . Catastrophic 1 | . . . 1 . . Database Lockouts . | . . . . . . Manual . | . . . . . . Terminals 4 | . 1 . 3 . . Fabricators . | . . . . . . Repair Stations . | . . . . . . Recycling Units . | . . . . . . Scanalyzers . | . . . . . . Garrison Access 1 | . . . . . 1 Terminal Hacks 19 | . 1 3 2 13 . Record 16 | . . 3 . 13 . Alert Level 1 | . . . 1 . . Hauler Manifests 1 | . . . 1 . . Zone Layout 1 | . 1 . . . . Fabricator Hacks . | . . . . . . Repair Station Hacks . | . . . . . . Recycling Unit Hacks . | . . . . . . Scanalyzer . | . . . . . . Garrison Access Hacks 1 | . . . . . 1 Seal Access 1 | . . . . . 1 Unauthorized Hacks . | . . . . . . Terminals . | . . . . . . Fabricators . | . . . . . . Repair Stations . | . . . . . . Recycling Units . | . . . . . . Scanalyzers . | . . . . . . Garrison Access . | . . . . . . Data Cores Recovered . | . . . . . . Used . | . . . . . . Hacking Detections 2 | . . . 2 . . Full Trace Events . | . . . . . . Feedback Events . | . . . . . . Feedback Blocked . | . . . . . . Robot Schematics Acquired . | . . . . . . Robots Built . | . . . . . . Authchips . | . . . . . . Time . | . . . . . . Total Robot Build Rating . | . . . . . . Part Schematics Acquired . | . . . . . . Parts Built . | . . . . . . Authchips . | . . . . . . Time . | . . . . . . Total Part Build Rating . | . . . . . . Parts Repaired . | . . . . . . Time . | . . . . . . Parts Recycled . | . . . . . . Recycled Matter . | . . . . . . Retrieved Matter . | . . . . . . Retrieved Components . | . . . . . . Parts Scanalyzed . | . . . . . . Part Schematics Acquired . | . . . . . . Parts Damaged . | . . . . . . Bothacking | -11 -10 -10 -9 -9 -6 ------------ Run | Yrd Mat Sub Rec Scr Fac Used RIF Installer . | . . . . . . Robots Hacked . | . . . . . . Non-combat . | . . . . . . Combat . | . . . . . . Robot Hacks Applied . | . . . . . . Relay Couplers Released . | . . . . . . Fabnet Peak Effective % . | . . . . . . Robots Rewired . | . . . . . . Allies Hacked . | . . . . . . Hacks Repelled . | . . . . . . Allies | -11 -10 -10 -9 -9 -6 -------- Run | Yrd Mat Sub Rec Scr Fac Total Allies 5 | . . 5 . . . Largest Group 3 | . . 3 3 . . Highest-Rated Group 57 | . . 57 57 . . Highest-Rated Ally 19 | . . 19 19 . . Total Orders . | . . . . . . Ally Attacks 54 | . . 30 24 . . Total Damage 750 | . . 386 364 . . Kills 9 | . . 4 5 . . Allies Corrupted . | . . . . . . Allies Melted . | . . . . . . Intel | -11 -10 -10 -9 -9 -6 ------- Run | Yrd Mat Sub Rec Scr Fac Robot Analysis Total . | . . . . . . Derelict Logs Recovered 1 | . . 1 . . . Drone Launches . | . . . . . . Drone Recoveries . | . . . . . . Exploration | -11 -10 -10 -9 -9 -6 ------------- Run | Yrd Mat Sub Rec Scr Fac Turns Passed 12018 | 74 1654 4819 1042 3510 919 Spaces Moved 6714 | 44 894 2841 603 1940 392 Core 7 | 7 . . . . . Treads 6707 | 37 894 2841 603 1940 392 Legs . | . . . . . . Wheels . | . . . . . . Hover . | . . . . . . Flight . | . . . . . . Fastest Speed 50 | 50 160 160 160 160 160 Average Speed 167 | 142 160 160 160 179 202 Slowest Speed 240 | 160 160 160 160 240 240 Overloaded Moves . | . . . . . . Propulsion Burnouts . | . . . . . . Robots Hopped . | . . . . . . Cave-ins Triggered . | . . . . . . Exploration Rate (%) 61 | 3 97 97 66 93 14 Regions Visited 5 Branch Regions 3 Pre-discovered Areas 2 | . . 2 . . . Known Exits Taken 4 | . 1 1 1 1 . Unknown Exits Taken 1 | 1 . . . . . Scrap Searched 19 | . . 14 . 5 . Spaces Dug . | . . . . . . Terrain Destroyed 28 | . 3 . . . 25 Melee . | . . . . . . Projectile 3 | . 3 . . . . AOE 25 | . . . . . 25 Terrain Rammed . | . . . . . . Walls Destroyed . | . . . . . . Machines Disabled . | . . . . . . Actions | -11 -10 -10 -9 -9 -6 --------- Run | Yrd Mat Sub Rec Scr Fac Total 7179 | 55 1042 2989 674 1965 454 Wait 151 | . 58 33 55 . 5 Move 6709 | 43 893 2840 602 1939 392 Hop . | . . . . . . Pick Up 73 | 7 27 18 1 10 10 Fast Attach 1 | . . 1 . . . Attach 25 | 5 4 4 1 2 9 Detach 3 | . . 1 1 1 . Swap 32 | . 6 9 6 8 3 Drop 42 | . 12 18 4 5 3 Fire 122 | . 42 44 4 . 32 Melee 21 | . . 21 . . . Ram . | . . . . . . Kick . | . . . . . . Crush . | . . . . . . Escape Stasis . | . . . . . . Rewire . | . . . . . . Trap . | . . . . . . Miscellaneous . | . . . . . . Route ------- -11/Scrapyard -10/Materials (discovered 6 exits: *Mat x3 / *Min x2 / *Sub) -10/Subcaves (discovered 3 exits: *Mat x2 / *Rec) -9/Recycling -9/Scraptown (discovered 2 exits: *Fac x2) -6/Factory History --------- Turn | Location | Event 7 | -11/Scrapyard | Discovered new exit (range 16) 75 | -11/Scrapyard | Entered Materials 75 | -10/Materials | Discovered new exit (range 15) 316 | -10/Materials | Build established: Mutant 499 | -10/Materials | Identified exit to Mines 683 | -10/Materials | Discovered exit to Mines (range 7) 757 | -10/Materials | Discovered new exit (range 14) 778 | -10/Materials | Identified exit to Materials 1154 | -10/Materials | Discovered exit to Materials (range 3) 1330 | -10/Materials | Discovered exit to Materials (range 5) 1721 | -10/Materials | Discovered new exit (range 5) 1727 | -10/Materials | Identified exit to Subcaves 1729 | -10/Materials | Entered Subcaves 1766 | -10/Subcaves | A swath of the cavern ceiling suddenly collapsed 2015 | -10/Subcaves | Discovered new exit (range 8) 2030 | -10/Subcaves | Identified exit to Materials 2177 | -10/Subcaves | Visited Clippyterm 2182 | -10/Subcaves | Learned Factory stockpile data 2577 | -10/Subcaves | Learned location of Zion (-6) 2577 | -10/Subcaves | Met a Zionite searching for "candidates" 3424 | -10/Subcaves | Learned location of Storage (-9) 3921 | -10/Subcaves | Shifting Twisted Machinery released Sub. Optics 3923 | -10/Subcaves | Shifting Twisted Machinery released Sub. Monowheel 4075 | -10/Subcaves | Visited triangular shrine 4099 | -10/Subcaves | Core integrity fell below 50% 4124 | -10/Subcaves | Found Prototype Device 4215 | -10/Subcaves | Identified V3-11A's Pendant 4340 | -10/Subcaves | Befriended Subdweller 4381 | -10/Subcaves | Shifting Twisted Machinery released Sub. Monowheel 4475 | -10/Subcaves | Shifting Twisted Machinery released Multitool 4705 | -10/Subcaves | Befriended Subdweller 4787 | -10/Subcaves | Discovered new exit (range 15) 4821 | -10/Subcaves | Identified exit to Recycling 4941 | -10/Subcaves | Approached by friendly Subdweller 5392 | -10/Subcaves | A swath of the cavern ceiling suddenly collapsed 5442 | -10/Subcaves | Shifting Twisted Machinery released Battle Rifle 5462 | -10/Subcaves | Shifting Twisted Machinery released Flamer 5549 | -10/Subcaves | Ambushed by Subdwellers from Twisted Machinery 5550 | -10/Subcaves | Befriended Subdweller 5555 | -10/Subcaves | Befriended Subdweller 5653 | -10/Subcaves | Discovered exit to Materials (range 6) 6548 | -10/Subcaves | Entered Recycling 6548 | -9/Recycling | Accompanied by 3 allies 6611 | -9/Recycling | Scanned before Scraplab entrance 6635 | -9/Recycling | Entered Scraplab 6654 | -9/Recycling | Discovered new exit (range 4) 6657 | -9/Recycling | Identified exit to Scraptown 7149 | -9/Recycling | Core integrity fell below 20% 7151 | -9/Recycling | P-60 Hacker assimilated allied Y0-1DK(R) 7165 | -9/Recycling | Befriended Subdweller 7590 | -9/Recycling | Entered Scraptown 7723 | -9/Scraptown | Visited SPCMW 7835 | -9/Scraptown | Visited UFD Registry 7852 | -9/Scraptown | Visited TADAMA 7897 | -9/Scraptown | Visited Fellowship of the Rings 7931 | -9/Scraptown | Visited Science Testing Area 8117 | -9/Scraptown | Discovered new exit (range 9) 8130 | -9/Scraptown | Identified exit to Factory 8405 | -9/Scraptown | Heard Great Nut preacher, LISTEN AND RECITE! 8458 | -9/Scraptown | Delivered V3-11A's Pendant to T0-NE2 in exchange for information 8956 | -9/Scraptown | Visited Comm Corps 9060 | -9/Scraptown | Visited Cyclists 9132 | -9/Scraptown | Visited Spacefarers 9305 | -9/Scraptown | Registered with UFD as "Waveeater" 9393 | -9/Scraptown | Visited Curators Association 9454 | -9/Scraptown | Visited DA-N13 Charitable Foundation 9475 | -9/Scraptown | Found DCF Scrap (28 items) 9616 | -9/Scraptown | Visited A0-MCA Data Center 9640 | -9/Scraptown | Given a C- rating by A0-MCA 9650 | -9/Scraptown | Found A0-MCA's Component Scanner 9872 | -9/Scraptown | Discovered exit to Factory (range 5) 9970 | -9/Scraptown | Visited Cartography Club 10090 | -9/Scraptown | Visited Scrapoid Research Area 10337 | -9/Scraptown | Visited Derelict Rescue Squad 10414 | -9/Scraptown | Visited Chapter 10 10856 | -9/Scraptown | Visited Botcube Research 10891 | -9/Scraptown | Visited Infowarlord's Domain 10904 | -9/Scraptown | Found Exp. Signal Interpreter 11100 | -9/Scraptown | Entered Factory 11100 | -6/Factory | Evolved 8 slots: Power x1, Propulsion x2, Utility x4, Weapon x1 11391 | -6/Factory | Build established: Derelict-Gunner 11884 | -6/Factory | Garrison activated, responded to threat 12019 | -6/Factory | Self-destructed Last Messages --------------- 11978_ Slug penetrates Wall. 11978_ K-01 Serf collects debris. 11979_ Slug penetrates Subcomponent Replicator. 11981_ K-01 Serf collects debris. 11984_ Slug penetrates Wall. 11991_ Imp. Ion Engine destroyed. 11991_ Slug penetrates Wall. 11998_ Slug penetrates Door. 11998_ Penetrated by Slug. 11999_ H-66 Slayer suffers critical hit (Burn). 12001_ Slug penetrates Wall. 12002_ Penetrated by Slug. 12002_ Beam Rifle destroyed. 12004_ Slug penetrates Wall. 12004_ Critical hit (Destroy). 12004_ Imp. Treads destroyed. 12004_ Slug penetrates Wall. 12008_ Penetrated by Slug. 12008_ Hrd. Medium Armor Plating destroyed. 12009_ Slug penetrates Wall. Map ----- +----------------------------------------------------+ | ??????????????????????????????????## T#### #? | | ???????????????????????????????????###???# # " | | ?????????????????????????????????????????# # " | | ?????????????????????????????????????????# / " | | ?????????????????????????????????????????# # | | ?????????????????????????????????????????# #?? | | ????????????????????????????############## #?? | | ????????????????????????????#= # #?? | | ????????????????????????????# !# ### | | ????????????????????????????# # | | ????????????????????????????# + | | ????????????????????????????# """ """ # | | ??????????????????????????????? """ """ # | | ????????????????????????????# """ """ # | | ????????????????????????????# ######## | | ????????????????????????????# """ #??????# | | ????????????????????????????# "" "" """ #??????# | | ??????????????????????????????""S"" """ ######## | | ??????????????????????????????"""" + | | ???????????????????###?#####???################## | | ???????????????????# !#????########?# | | ???????????????????# """"""" #????# #### | | ???????????????????#= """"""" #????# # | | ???????????????????# """"""" #????# # | | ???????????????????# """"""" #????# # | | ???????????????????# @ #????# " | | ?????????????? #######+############# # | | ?????????????# # # | | ?????????????# " # | | ?????????????# # " | | ?????????????# ##################### # | | ?????????????# ???????????????????????# # | | ???????????????????????????????????????# # | | ???????????????????????????????????????# # | | ???????????????????????????????????????# #### | | ???????????????????????????????????????########??? | | ?????????????????????????????????????????????????? | | ?????????????????????????????????????????????????? | | ?????????????????????????????????????????????????? | | ?????????????????????????????????????????????????? | | ?????????????????????????????????????????????????? | | ?????????????????????????????????????????????????? | | ?????????????????????????????????????????????????? | | ?????????????????????????????????????????????????? | | ?????????????????????????????????????????????????? | | ?????????????????????????????????????????????????? | | ?????????????????????????????????????????????????? | | ?????????????????????????????????????????????????? | | ?????????????????????????????????????????????????? | | ?????????????????????????????????????????????????? | +----------------------------------------------------+ Best States ------------- Heat Dissipation 64 Energy Generation 25 Energy Capacity 315 Matter Stores 300 Matter Capacity 300 Sight Range 16 Terrain Scan Density 10 Armor Coverage 225 Resistance: KI 20 Resistance: TH 20 Resistance: EX 20 Resistance: EM 20 Resistance: I 20 Resistance: S 20 Resistance: P 20 Evasion (%) 40 Targeting Accuracy 8 Recoil Reduction 3 Offensive Hacking 10 Item Schematics ----------------- None Robot Schematics ------------------ None Fabricated ------------ Nothing Alien Tech Used ----------------- None Achievements -------------- None Challenges ------------ None Game ------ Seed PersonalNeutronComputer Manual? 0 Play Time 01:09:20 Cumulative 204.6 hours Start 2024.08.17 @ 21:34:28 End 2024.08.18 @ 17:09:50 Sessions 3 Manual Loads 0 Difficulty Adventurer Special Mode None Game No. 307 Rogue 241 Adventurer 66 Explorer 0 Win Type - Total 5 Types 2/1/0/2/0/0/0/0/0 Lore% 38 Gallery% 58 Achievement% 55 Wizard Run 0 Options --------- Layout 1 ASCII 0 Keyboard 0 Movement Arrows Keybinds 0 Fullscreen 1 Font 16/SmallcapsGlow Map View 55x38 Zoom Use 0% Tactical HUD 1 Map Filters NONE Filters NONE Steam 1 RUN: 57fba239-2d91-473d-83db-8603d7f7ab5c